[Event "ESP-chT Primera Division 2019"]
[Site "Linares"]
[Date "2019.08.26"]
[Round "1.23"]
[White "Badillo Ramos, Steve"]
[Black "Cori T., Deysi"]
[Result "1/2-1/2"]
[ECO "B40"]
[WhiteElo "1967"]
[BlackElo "2400"]
[Annotator "NA"]
[PlyCount "70"]
[EventDate "2019.08.26"]
[EventType "team-tourn"]
[EventCountry "ESP"]
[SourceTitle "playchess.com"]
[Source "ChessBase"]
[SourceQuality "1"]
[TimeControl "5400+30"]

1. e4 {[%emt 0:00:00]} c5 {[%emt 0:00:00]} 2. Nf3 {[%emt 0:00:00]} e6 {[%emt 0:00:00]} 3. c4 {[%emt 0:00:00]} Nc6 {[%emt 0:01:07]} 4. Nc3 {[%emt 0:00:00]} Nge7 {[%emt 0:01:52]} 5. d4 {[%emt 0:04:03]} Nxd4 {[%emt 0:02:37]} 6. Nxd4 {[%emt 0:00:23]} cxd4 {[%emt 0:00:02]} 7. Qxd4 {[%emt 0:13:09]} Nc6 {[%emt 0:00:01]} 8. Qd3 {[%emt 0:00:47]} a6 {[%emt 0:04:54]} 9. Be2 {[%emt 0:00:40]} Qc7 {[%emt 0:05:49]} 10. O-O {[%emt 0:01:01]} Bc5 {[%emt 0:07:40]} 11. Kh1 {[%emt 0:09:12]} b6 {[%emt 0:09:51]} 12. a3 {[%emt 0:06:25]} Bb7 {[%emt 0:05:31]} 13. b4 {[%emt 0:02:19]} Ne5 {[%emt 0:03:12]} 14. Bf4 {[%emt 0:06:55]} Nxd3 {[%emt 0:05:23]} 15. Bxc7 {[%emt 0:00:06]} Nxf2+ {[%emt 0:00:38]} 16. Kg1 {[%emt 0:00:02]} Nh3+ {[%emt 0:00:59]} 17. Kh1 {[%emt 0:00:07]} Bd4 {[%emt 0:01:26]} 18. gxh3 {[%emt 0:02:43]} Rc8 {[%emt 0:09:26]} 19. Rad1 {[%emt 0:00:56]} Bxc3 {[%emt 0:01:07]} 20. Bxb6 {[%emt 0:00:08]} Bxe4+ {[%emt 0:01:45]} 21. Bf3 {[%emt 0:03:36]} f5 {[%emt 0:04:48]} 22. Bc5 {[%emt 0:02:14]} Bc2 {[%emt 0:13:51]} 23. Rd6 {[%emt 0:02:33]} Bf6 {[%emt 0:09:34]} 24. Rc1 {[%emt 0:04:50]} Be4 {[%emt 0:04:38]} 25. Bxe4 {[%emt 0:00:26]} fxe4 {[%emt 0:00:01]} 26. Rxa6 {[%emt 0:04:14]} Be7 {[%emt 0:00:35]} 27. Bxe7 {[%emt 0:11:09]} Kxe7 {[%emt 0:00:01]} 28. c5 {[%emt 0:00:09]} Rhf8 {[%emt 0:00:21]} 29. Re1 {[%emt 0:02:55]} Rf2 {[%emt 0:03:15]} 30. Rxe4 {[%emt 0:00:35]} Rcf8 {[%emt 0:00:07]} 31. Rg4 {[%emt 0:01:54]} g6 {[%emt 0:00:00]} 32. Rg2 {[%emt 0:01:06]} Rf1+ {[%emt 0:00:01]} 33. Rg1 {[%emt 0:00:06]} R1f2 {[%emt 0:00:06]} 34. Rg2 {[%emt 0:00:04]} Rf1+ {[%emt 0:00:36]} 35. Rg1 {[%emt 0:00:05]} R1f2 {[%emt 0:03:13]} 1/2-1/2

[Event "ESP-chT Primera Division 2019"]
[Site "Linares"]
[Date "2019.08.26"]
[Round "1.24"]
[White "Antunez Munoz, Ines"]
[Black "Bermudez Revuelta, Paula"]
[Result "1/2-1/2"]
[ECO "B22"]
[WhiteElo "1891"]
[BlackElo "1702"]
[Annotator "NA"]
[PlyCount "123"]
[EventDate "2019.08.26"]
[EventType "team-tourn"]
[EventCountry "ESP"]
[SourceTitle "playchess.com"]
[Source "ChessBase"]
[SourceQuality "1"]
[TimeControl "5400+30"]

1. e4 {[%emt 0:00:00]} c5 {[%emt 0:00:00]} 2. c3 {[%emt 0:00:11]} d5 {[%emt 0:00:00]} 3. exd5 {[%emt 0:00:14]} Qxd5 {[%emt 0:00:00]} 4. d4 {[%emt 0:00:16]} g6 {[%emt 0:00:00]} 5. Nf3 {[%emt 0:00:49]} Bg7 {[%emt 0:00:00]} 6. Na3 {[%emt 0:00:26]} cxd4 {[%emt 0:00:57]} 7. Bc4 {[%emt 0:01:52]} Qe4+ {[%emt 0:00:14]} 8. Be3 {[%emt 0:01:24]} Nh6 {[%emt 0:00:15]} 9. cxd4 {[%emt 0:02:15]} O-O {[%emt 0:00:19]} 10. O-O {[%emt 0:03:45]} Bg4 {[%emt 0:02:01]} 11. Ng5 {[%emt 0:04:33]} Qxe3 {[%emt 0:06:49]} 12. fxe3 {[%emt 0:01:10]} Bxd1 {[%emt 0:00:07]} 13. Raxd1 {[%emt 0:00:07]} Nd7 {[%emt 0:11:24]} 14. Bb3 {[%emt 0:06:36]} Rac8 {[%emt 0:05:24]} 15. Nc4 {[%emt 0:05:16]} b5 {[%emt 0:06:41]} 16. Nd2 {[%emt 0:05:50]} a5 {[%emt 0:07:15]} 17. Rc1 {[%emt 0:12:43]} Rxc1 {[%emt 0:09:50]} 18. Rxc1 {[%emt 0:00:12]} a4 {[%emt 0:03:15]} 19. Bd5 Nf5 {[%emt 0:04:17]} 20. Rc7 {[%emt 0:14:36]} Nb6 {[%emt 0:03:36]} 21. Bc6 {[%emt 0:06:13]} Nxe3 {[%emt 0:03:22]} 22. Ndf3 {[%emt 0:02:16]} Nf5 {[%emt 0:05:33]} 23. b3 {[%emt 0:16:39]} axb3 {[%emt 0:01:45]} 24. axb3 {[%emt 0:00:06]} Bxd4+ {[%emt 0:06:35]} 25. Kf1 {[%emt 0:01:46]} b4 {[%emt 0:04:11]} 26. Be4 {[%emt 0:08:32]} Bc3 {[%emt 0:03:49]} 27. Ke2 {[%emt 0:04:06]} h6 {[%emt 0:03:22]} 28. Nh3 {[%emt 0:00:29]} e6 {[%emt 0:00:52]} 29. Nf4 {[%emt 0:01:24]} Nd4+ {[%emt 0:05:43]} 30. Nxd4 {[%emt 0:00:21]} Bxd4 {[%emt 0:00:02]} 31. Rb7 {[%emt 0:00:24]} Rc8 {[%emt 0:05:35]} 32. Nd3 {[%emt 0:00:50]} Rc2+ {[%emt 0:00:41]} 33. Kd1 {[%emt 0:00:21]} Rc3 {[%emt 0:00:28]} 34. Nc1 {[%emt 0:00:28]} Re3 {[%emt 0:01:18]} 35. Bc2 {[%emt 0:00:38]} Nd5 {[%emt 0:00:22]} 36. Rd7 {[%emt 0:00:35]} Bc3 {[%emt 0:00:32]} 37. Nd3 {[%emt 0:00:14]} Nf4 {[%emt 0:00:24]} 38. g3 {[%emt 0:00:35]} Nxd3 {[%emt 0:00:26]} 39. Bxd3 {[%emt 0:00:06]} Re1+ {[%emt 0:00:15]} 40. Kc2 {[%emt 0:00:04]} Rh1 {[%emt 0:00:14]} 41. h4 {[%emt 0:00:59]} Rh2+ {[%emt 0:00:05]} 42. Kc1 {[%emt 0:00:14]} Rg2 {[%emt 0:00:11]} 43. h5 {[%emt 0:01:01]} Rxg3 {[%emt 0:00:41]} 44. hxg6 {[%emt 0:00:28]} fxg6 {[%emt 0:00:01]} 45. Bc4 {[%emt 0:00:26]} Re3 {[%emt 0:00:39]} 46. Bd3 {[%emt 0:00:48]} g5 {[%emt 0:00:24]} 47. Bh7+ {[%emt 0:00:34]} Kf8 {[%emt 0:00:25]} 48. Bg6 {[%emt 0:00:25]} Bg7 {[%emt 0:01:09]} 49. Rf7+ {[%emt 0:00:32]} Kg8 {[%emt 0:00:08]} 50. Rb7 {[%emt 0:00:18]} Rxb3 {[%emt 0:01:00]} 51. Bf7+ {[%emt 0:00:40]} Kf8 52. Bxe6 Rc3+ {[%emt 0:01:35]} 53. Kd2 {[%emt 0:01:00]} Rf3 {[%emt 0:00:49]} 54. Rxb4 {[%emt 0:00:25]} Bc3+ {[%emt 0:00:15]} 55. Ke2 {[%emt 0:00:08]} Bxb4 {[%emt 0:00:22]} 56. Kxf3 {[%emt 0:00:05]} h5 {[%emt 0:00:28]} 57. Kg3 {[%emt 0:00:22]} Ke7 {[%emt 0:00:12]} 58. Bd5 {[%emt 0:00:39]} Kf6 {[%emt 0:00:06]} 59. Bf3 {[%emt 0:00:11]} Kg6 {[%emt 0:00:40]} 60. Be2 {[%emt 0:00:33]} Be1+ {[%emt 0:00:20]} 61. Kh3 {[%emt 0:00:28]} Kh6 {[%emt 0:00:50]} 62. Bf3 {[%emt 0:00:12]} 1/2-1/2

[Event "ESP-chT Primera Division 2019"]
[Site "Linares"]
[Date "2019.08.27"]
[Round "2.1"]
[White "Espinosa Aranda, Angel"]
[Black "Kokarev, Dmitry"]
[Result "1/2-1/2"]
[ECO "E91"]
[WhiteElo "2497"]
[BlackElo "2598"]
[Annotator "ChessBase"]
[PlyCount "41"]
[EventDate "2019.08.26"]
[EventType "team-tourn"]
[EventCountry "ESP"]
[SourceTitle "playchess.com"]
[Source "ChessBase"]
[SourceQuality "1"]
[TimeControl "5400+30"]

1. d4 {[%emt 0:00:00]} Nf6 {[%emt 0:00:00]} 2. c4 {[%emt 0:00:00]} g6 {[%emt 0:00:00]} 3. Nc3 {[%emt 0:00:24]} Bg7 {[%emt 0:00:01]} 4. e4 {[%emt 0:00:20]} d6 {[%emt 0:00:08]} 5. Nf3 {[%emt 0:00:37]} O-O {[%emt 0:00:13]} 6. Be2 {[%emt 0:00:08]} c6 {[%emt 0:01:18]} 7. O-O {[%emt 0:00:07]} e5 {[%emt 0:00:11]} 8. dxe5 {[%emt 0:05:17]} dxe5 {[%emt 0:00:18]} 9. Nxe5 {[%emt 0:00:24]} Nxe4 {[%emt 0:00:24]} 10. Nxe4 {[%emt 0:00:24]} Bxe5 {[%emt 0:00:17]} 11. Bg5 {[%emt 0:00:31]} Qxd1 {[%emt 0:00:15]} 12. Rfxd1 {[%emt 0:00:04]} Nd7 {[%emt 0:01:57]} 13. Nd6 {[%emt 0:02:04]} Nf6 {[%emt 0:02:37]} 14. Bf3 {[%emt 0:01:06]} Kg7 {[%emt 0:09:51]} 15. Rd2 {[%emt 0:08:17]} a5 {[%emt 0:08:05]} 16. Re1 {[%emt 0:07:29]} Bxd6 {[%emt 0:00:13]} 17. Rxd6 {[%emt 0:02:28]} Be6 {[%emt 0:00:10]} 18. Bd2 {[%emt 0:08:52]} Kg8 {[%emt 0:04:36]} 19. Bg5 {[%emt 0:08:51]} Kg7 {[%emt 0:03:25]} 20. Bd2 {[%emt 0:00:08]} Kg8 {[%emt 0:00:08]} 21. Bg5 {[%emt 0:00:10]} 1/2-1/2

[Event "ESP-chT Primera Division 2019"]
[Site "Linares"]
[Date "2019.08.27"]
[Round "2.3"]
[White "Rubio Mejia, Luis Ignacio"]
[Black "Cuenca Jimenez, Jose Fernando"]
[Result "0-1"]
[ECO "E43"]
[WhiteElo "2435"]
[BlackElo "2515"]
[Annotator "ChessBase"]
[PlyCount "84"]
[EventDate "2019.08.26"]
[EventType "team-tourn"]
[EventCountry "ESP"]
[SourceTitle "playchess.com"]
[Source "ChessBase"]
[SourceQuality "1"]
[TimeControl "5400+30"]

1. d4 {[%emt 0:00:00]} Nf6 {[%emt 0:00:00]} 2. c4 {[%emt 0:00:00]} e6 {[%emt 0:00:00]} 3. Nc3 {[%emt 0:00:16]} Bb4 {[%emt 0:00:00]} 4. e3 {[%emt 0:01:46]} b6 {[%emt 0:01:17]} 5. Bd3 {[%emt 0:02:19]} Bb7 {[%emt 0:00:47]} 6. Nf3 {[%emt 0:00:29]} O-O {[%emt 0:00:09]} 7. O-O {[%emt 0:01:14]} d5 {[%emt 0:00:03]} 8. cxd5 {[%emt 0:03:14]} exd5 {[%emt 0:00:06]} 9. a3 {[%emt 0:00:31]} Bd6 {[%emt 0:00:12]} 10. b4 {[%emt 0:00:44]} Nbd7 {[%emt 0:00:56]} 11. Qb3 {[%emt 0:04:14]} a6 {[%emt 0:00:16]} 12. Bb2 {[%emt 0:07:58]} Qe7 {[%emt 0:09:17]} 13. Rfd1 {[%emt 0:14:51]} b5 {[%emt 0:27:15]} 14. Ne2 {[%emt 0:19:16]} Nb6 {[%emt 0:05:20]} 15. Ng3 {[%emt 0:00:57]} g6 {[%emt 0:01:39]} 16. Bc3 {[%emt 0:18:11]} Ne4 {[%emt 0:07:44]} 17. Be1 {[%emt 0:09:43]} Rae8 {[%emt 0:07:51]} 18. Nd2 {[%emt 0:03:09]} Nxd2 {[%emt 0:09:10]} 19. Rxd2 {[%emt 0:02:22]} h5 {[%emt 0:02:41]} 20. Nf1 {[%emt 0:04:42]} h4 {[%emt 0:03:18]} 21. h3 {[%emt 0:01:01]} f5 {[%emt 0:01:45]} 22. Re2 {[%emt 0:00:40]} Kg7 {[%emt 0:01:39]} 23. Qc2 {[%emt 0:01:38]} Qf6 {[%emt 0:00:49]} 24. Nh2 {[%emt 0:00:59]} g5 {[%emt 0:03:05]} 25. Ra2 {[%emt 0:00:58]} Re7 {[%emt 0:02:42]} 26. f4 {[%emt 0:00:47]} gxf4 {[%emt 0:02:11]} 27. Nf3 {[%emt 0:00:05]} Rxe3 {[%emt 0:01:14]} 28. Nxh4 {[%emt 0:01:06]} Bc8 {[%emt 0:01:05]} 29. Bf2 {[%emt 0:00:22]} Nc4 {[%emt 0:03:00]} 30. Nf3 {[%emt 0:00:34]} Re4 {[%emt 0:03:16]} 31. a4 {[%emt 0:00:19]} Bd7 {[%emt 0:01:10]} 32. axb5 {[%emt 0:00:25]} Bxb5 {[%emt 0:00:33]} 33. Ne5 {[%emt 0:00:47]} Nxe5 {[%emt 0:01:09]} 34. dxe5 {[%emt 0:00:20]} Bxe5 {[%emt 0:00:10]} 35. Bxb5 {[%emt 0:00:41]} axb5 {[%emt 0:00:11]} 36. Ra7 {[%emt 0:00:19]} Rf7 {[%emt 0:00:45]} 37. Rd2 {[%emt 0:00:26]} Rc4 {[%emt 0:01:40]} 38. Qd1 {[%emt 0:00:33]} d4 {[%emt 0:00:43]} 39. Qe1 {[%emt 0:00:52]} Qd6 {[%emt 0:01:16]} 40. Rd3 {[%emt 0:00:39]} Rc3 {[%emt 0:01:26]} 41. Rd1 {[%emt 0:00:26]} Re7 {[%emt 0:01:23]} 42. Rxd4 {[%emt 0:00:35]} Qxd4 {[%emt 0:00:35]} 0-1

[Event "ESP-chT Primera Division 2019"]
[Site "Linares"]
[Date "2019.08.27"]
[Round "2.6"]
[White "Antunez Munoz, Ines"]
[Black "Rodrigo Yanguas, Maria"]
[Result "0-1"]
[ECO "A40"]
[WhiteElo "1891"]
[BlackElo "2079"]
[Annotator "NA"]
[PlyCount "58"]
[EventDate "2019.08.26"]
[EventType "team-tourn"]
[EventCountry "ESP"]
[SourceTitle "playchess.com"]
[Source "ChessBase"]
[SourceQuality "1"]
[TimeControl "5400+30"]

1. d4 {[%emt 0:00:00]} e6 {[%emt 0:00:00]} 2. Bf4 {[%emt 0:00:00]} f5 {[%emt 0:01:24]} 3. g4 {[%emt 0:01:45]} Nf6 {[%emt 0:06:38]} 4. gxf5 {[%emt 0:03:58]} exf5 {[%emt 0:00:08]} 5. Nf3 {[%emt 0:01:59]} Be7 {[%emt 0:01:59]} 6. Nc3 O-O {[%emt 0:02:06]} 7. Qd3 {[%emt 0:13:14]} d5 {[%emt 0:09:52]} 8. Rg1 {[%emt 0:11:37]} Ne4 {[%emt 0:05:33]} 9. Qe3 {[%emt 0:13:21]} c5 {[%emt 0:09:06]} 10. Be5 {[%emt 0:15:55]} Rf6 {[%emt 0:16:29]} 11. Nh4 {[%emt 0:15:52]} f4 {[%emt 0:06:06]} 12. Qf3 {[%emt 0:03:25]} Rf7 {[%emt 0:02:30]} 13. Qg2 {[%emt 0:05:58]} Bxh4 {[%emt 0:06:16]} 14. Nxe4 {[%emt 0:00:22]} dxe4 {[%emt 0:01:06]} 15. Bxg7 {[%emt 0:00:19]} f3 {[%emt 0:01:44]} 16. exf3 {[%emt 0:05:17]} exf3 {[%emt 0:00:15]} 17. Qxf3 {[%emt 0:00:18]} Rxg7 {[%emt 0:07:02]} 18. Bc4+ {[%emt 0:00:15]} Kh8 {[%emt 0:00:07]} 19. Rxg7 {[%emt 0:02:14]} Kxg7 {[%emt 0:00:48]} 20. O-O-O {[%emt 0:00:42]} Qf6 {[%emt 0:01:37]} 21. Qe4 {[%emt 0:01:42]} Nc6 {[%emt 0:02:39]} 22. Rg1+ {[%emt 0:02:01]} Kh6 {[%emt 0:01:02]} 23. Kb1 {[%emt 0:00:42]} Bf5 {[%emt 0:01:45]} 24. Qe3+ {[%emt 0:00:10]} Bg5 {[%emt 0:00:38]} 25. f4 {[%emt 0:00:23]} Bh4 {[%emt 0:00:23]} 26. Qf3 {[%emt 0:00:53]} Qxd4 {[%emt 0:02:42]} 27. Qf1 {[%emt 0:00:32]} Re8 {[%emt 0:00:51]} 28. Qg2 {[%emt 0:00:26]} Qxg1+ {[%emt 0:00:41]} 29. Qxg1 {[%emt 0:00:32]} Re1+ {[%emt 0:00:01]} 0-1

[Event "ESP-chT Primera Division 2019"]
[Site "Linares"]
[Date "2019.08.27"]
[Round "2.12"]
[White "Bermudez Revuelta, Paula"]
[Black "Garcia Molina, Jose"]
[Result "1-0"]
[ECO "B84"]
[WhiteElo "1702"]
[BlackElo "1939"]
[Annotator "NA"]
[PlyCount "73"]
[EventDate "2019.08.26"]
[EventType "team-tourn"]
[EventCountry "ESP"]
[SourceTitle "playchess.com"]
[Source "ChessBase"]
[SourceQuality "1"]
[TimeControl "5400+30"]

1. e4 {[%emt 0:00:00]} c5 {[%emt 0:00:08]} 2. Nf3 {[%emt 0:00:00]} d6 {[%emt 0:00:44]} 3. d4 {[%emt 0:00:00]} cxd4 {[%emt 0:00:09]} 4. Nxd4 {[%emt 0:00:00]} Nf6 {[%emt 0:00:19]} 5. Nc3 {[%emt 0:00:00]} a6 {[%emt 0:00:07]} 6. Be2 {[%emt 0:00:00]} e6 {[%emt 0:01:21]} 7. O-O {[%emt 0:00:00]} Be7 {[%emt 0:00:30]} 8. f4 {[%emt 0:00:07]} O-O {[%emt 0:01:39]} 9. Kh1 {[%emt 0:00:07]} Qc7 {[%emt 0:01:47]} 10. a4 {[%emt 0:00:10]} Nc6 {[%emt 0:02:07]} 11. Be3 {[%emt 0:00:09]} Bd7 {[%emt 0:01:10]} 12. Nb3 {[%emt 0:00:06]} Nb4 {[%emt 0:05:48]} 13. Bf3 {[%emt 0:03:06]} e5 {[%emt 0:07:49]} 14. f5 {[%emt 0:01:56]} d5 {[%emt 0:12:08]} 15. exd5 {[%emt 0:06:33]} Bxf5 {[%emt 0:00:43]} 16. Rc1 {[%emt 0:03:46]} Bd6 {[%emt 0:13:24]} 17. Be2 {[%emt 0:08:32]} Bg6 {[%emt 0:01:45]} 18. Bg5 {[%emt 0:04:09]} Nd7 {[%emt 0:10:17]} 19. Bh5 {[%emt 0:04:28]} Rae8 {[%emt 0:10:57]} 20. Bxg6 {[%emt 0:02:32]} hxg6 {[%emt 0:00:17]} 21. Ne4 {[%emt 0:00:54]} f5 {[%emt 0:01:05]} 22. Nxd6 {[%emt 0:03:54]} Qxd6 {[%emt 0:00:08]} 23. c3 {[%emt 0:01:35]} f4 {[%emt 0:07:36]} 24. cxb4 {[%emt 0:00:53]} Rf5 {[%emt 0:00:04]} 25. Bh4 {[%emt 0:03:54]} Qxb4 {[%emt 0:01:27]} 26. Be1 {[%emt 0:06:22]} Qd6 {[%emt 0:01:51]} 27. Na5 {[%emt 0:03:49]} e4 {[%emt 0:04:13]} 28. Nc4 {[%emt 0:05:11]} Qf6 {[%emt 0:04:18]} 29. Bc3 {[%emt 0:08:29]} Qg5 {[%emt 0:01:24]} 30. Rg1 {[%emt 0:02:30]} Qh4 {[%emt 0:04:48]} 31. Be1 {[%emt 0:02:10]} Qg5 {[%emt 0:00:11]} 32. Nd6 {[%emt 0:03:44]} Rxd5 {[%emt 0:00:16]} 33. Qb3 {[%emt 0:00:08]} Re6 {[%emt 0:02:37]} 34. Rc8+ {[%emt 0:02:22]} Nf8 {[%emt 0:00:02]} 35. Bb4 {[%emt 0:01:35]} e3 {[%emt 0:02:56]} 36. Rxf8+ {[%emt 0:00:37]} Kh7 {[%emt 0:00:01]} 37. Rh8+ {[%emt 0:00:25]} 1-0

[Event "ESP-chT Primera Division 2019"]
[Site "Linares"]
[Date "2019.08.27"]
[Round "2.14"]
[White "Gonzalez Merino, Alberto"]
[Black "Salgado Lopez, Ivan"]
[Result "0-1"]
[ECO "A05"]
[WhiteElo "2226"]
[BlackElo "2596"]
[Annotator "ChessBase"]
[PlyCount "74"]
[EventDate "2019.08.26"]
[EventType "team-tourn"]
[EventCountry "ESP"]
[SourceTitle "playchess.com"]
[Source "ChessBase"]
[SourceQuality "1"]
[TimeControl "5400+30"]

1. Nf3 {[%emt 0:00:00]} Nf6 {[%emt 0:00:06]} 2. c4 {[%emt 0:00:00]} b6 {[%emt 0:00:38]} 3. g3 {[%emt 0:00:08]} Bb7 {[%emt 0:00:39]} 4. Bg2 {[%emt 0:00:15]} g6 {[%emt 0:00:33]} 5. O-O {[%emt 0:01:36]} Bg7 {[%emt 0:00:09]} 6. Nc3 {[%emt 0:01:49]} O-O {[%emt 0:00:32]} 7. Qc2 {[%emt 0:04:28]} c5 {[%emt 0:01:12]} 8. e4 {[%emt 0:17:27]} Nc6 {[%emt 0:00:21]} 9. d3 {[%emt 0:00:29]} d6 {[%emt 0:00:16]} 10. a3 {[%emt 0:02:03]} e6 {[%emt 0:00:57]} 11. b3 {[%emt 0:07:44]} Ng4 {[%emt 0:01:21]} 12. Bb2 {[%emt 0:04:06]} Qd7 {[%emt 0:00:55]} 13. h3 {[%emt 0:06:43]} Nge5 {[%emt 0:00:36]} 14. Nxe5 {[%emt 0:00:50]} dxe5 {[%emt 0:01:26]} 15. Ne2 {[%emt 0:01:35]} Rad8 {[%emt 0:01:37]} 16. Rad1 {[%emt 0:00:32]} f5 {[%emt 0:00:27]} 17. f3 {[%emt 0:09:37]} f4 {[%emt 0:01:30]} 18. g4 {[%emt 0:04:59]} Bf6 {[%emt 0:01:18]} 19. Bc3 {[%emt 0:04:48]} Qe7 {[%emt 0:03:23]} 20. Qb2 {[%emt 0:01:02]} Ba6 {[%emt 0:02:38]} 21. Kh2 {[%emt 0:05:02]} b5 {[%emt 0:03:01]} 22. Qa1 {[%emt 0:06:33]} Kf7 {[%emt 0:03:24]} 23. Rh1 {[%emt 0:01:10]} Rd7 {[%emt 0:10:29]} 24. Bf1 {[%emt 0:04:17]} Rfd8 {[%emt 0:01:56]} 25. cxb5 {[%emt 0:02:41]} Bxb5 {[%emt 0:00:09]} 26. Nc1 {[%emt 0:00:03]} Nd4 {[%emt 0:05:42]} 27. Bxd4 {[%emt 0:00:34]} cxd4 {[%emt 0:00:07]} 28. Qb2 {[%emt 0:02:30]} Rc7 {[%emt 0:02:00]} 29. Kg1 {[%emt 0:00:55]} Rdc8 {[%emt 0:00:45]} 30. Rh2 {[%emt 0:00:05]} h5 {[%emt 0:04:56]} 31. Na2 {[%emt 0:00:33]} Bh4 {[%emt 0:02:19]} 32. Rc1 {[%emt 0:01:11]} Rxc1 {[%emt 0:00:52]} 33. Nxc1 {[%emt 0:00:01]} Be1 {[%emt 0:00:31]} 34. Na2 {[%emt 0:05:29]} Qh4 {[%emt 0:01:19]} 35. Qe2 {[%emt 0:00:09]} Bg3 {[%emt 0:01:28]} 36. Rh1 {[%emt 0:04:20]} Bxd3 {[%emt 0:01:22]} 37. Qg2 {[%emt 0:00:01]} Rc2 {[%emt 0:01:32]} 0-1

[Event "ESP-chT Primera Division 2019"]
[Site "Linares"]
[Date "2019.08.27"]
[Round "2.16"]
[White "Fernandez Gonzalez, Juan Carlos"]
[Black "Sousa, Andre Ventura"]
[Result "0-1"]
[ECO "D86"]
[WhiteElo "2396"]
[BlackElo "2362"]
[Annotator "NA RC"]
[PlyCount "88"]
[EventDate "2019.08.26"]
[EventType "team-tourn"]
[EventCountry "ESP"]
[SourceTitle "playchess.com"]
[Source "ChessBase"]
[SourceQuality "1"]
[TimeControl "5400+30"]

1. d4 {[%emt 0:00:00]} Nf6 {[%emt 0:00:00]} 2. c4 {[%emt 0:00:00]} g6 {[%emt 0:00:00]} 3. Nc3 {[%emt 0:00:02]} d5 {[%emt 0:00:00]} 4. cxd5 {[%emt 0:01:11]} Nxd5 {[%emt 0:00:00]} 5. e4 {[%emt 0:00:23]} Nxc3 {[%emt 0:00:00]} 6. bxc3 {[%emt 0:00:05]} Bg7 {[%emt 0:00:02]} 7. Bc4 {[%emt 0:00:15]} c5 {[%emt 0:00:04]} 8. Be3 {[%emt 0:00:21]} Nc6 {[%emt 0:00:41]} 9. Ne2 {[%emt 0:00:11]} O-O {[%emt 0:00:05]} 10. O-O {[%emt 0:00:32]} Bg4 {[%emt 0:00:02]} 11. f3 {[%emt 0:00:25]} Bd7 {[%emt 0:00:05]} 12. Rb1 {[%emt 0:03:27]} Qc7 {[%emt 0:00:05]} 13. dxc5 {[%emt 0:02:13]} Na5 {[%emt 0:11:29]} 14. Bd3 {[%emt 0:25:09]} Rfd8 {[%emt 0:00:17]} 15. Qc2 {[%emt 0:05:37]} Be6 {[%emt 0:10:37]} 16. Rfd1 {[%emt 0:26:46]} Nc4 {[%emt 0:00:39]} 17. Bxc4 {[%emt 0:00:08]} Bxc4 {[%emt 0:00:20]} 18. Kh1 {[%emt 0:04:39]} Qa5 {[%emt 0:08:23]} 19. h3 {[%emt 0:11:58]} Bb5 {[%emt 0:24:37]} 20. Rxd8+ {[%emt 0:02:43]} Rxd8 {[%emt 0:00:08]} 21. Nd4 {[%emt 0:03:24]} Ba4 {[%emt 0:01:47]} 22. Qb2 {[%emt 0:00:22]} Bc6 {[%emt 0:27:27]} 23. a3 {[%emt 0:02:05]} Be5 {[%emt 0:02:18]} 24. Qb4 {[%emt 0:01:31]} Qa6 {[%emt 0:00:06]} 25. Nxc6 {[%emt 0:02:09]} bxc6 {[%emt 0:00:04]} 26. Bd4 {[%emt 0:00:10]} Bf4 {[%emt 0:00:14]} 27. e5 {[%emt 0:02:23]} Qd3 {[%emt 0:04:01]} 28. Qb2 {[%emt 0:01:31]} Qf5 {[%emt 0:02:42]} 29. Re1 {[%emt 0:01:12]} Qg5 {[%emt 0:01:28]} 30. Re4 {[%emt 0:02:22]} Qg3 {[%emt 0:02:13]} 31. Rxf4 {[%emt 0:00:02]} Qxf4 {[%emt 0:00:04]} 32. Qb7 {[%emt 0:00:17]} a5 {[%emt 0:00:24]} 33. Qb6 {[%emt 0:00:45]} Re8 {[%emt 0:00:23]} 34. Qb7 {[%emt 0:01:18]} a4 {[%emt 0:00:45]} 35. Kg1 {[%emt 0:00:15]} Kf8 {[%emt 0:00:47]} 36. Qb6 {[%emt 0:01:15]} Qc1+ {[%emt 0:01:47]} 37. Kh2 {[%emt 0:00:08]} Qxa3 {[%emt 0:00:03]} 38. e6 {[%emt 0:00:53]} Qb3 {[%emt 0:00:32]} 39. Qxc6 {[%emt 0:00:16]} Qb8+ {[%emt 0:01:54]} 40. Kg1 {[%emt 0:00:15]} a3 {[%emt 0:00:22]} 41. exf7 {[%emt 0:00:55]} Rd8 {[%emt 0:01:30]} 42. Qe4 {[%emt 0:00:41]} a2 {[%emt 0:00:21]} 43. c4 {[%emt 0:00:08]} Qb1+ {[%emt 0:00:05]} 44. Kh2 {[%emt 0:00:11]} Qxe4 {[%emt 0:00:05]} 0-1

[Event "ESP-chT Primera Division 2019"]
[Site "Linares"]
[Date "2019.08.27"]
[Round "2.17"]
[White "Gomez Dieguez, David"]
[Black "Iglesias Ferreira, Andres"]
[Result "1-0"]
[ECO "B23"]
[WhiteElo "2296"]
[BlackElo "1845"]
[Annotator "NA"]
[PlyCount "59"]
[EventDate "2019.08.26"]
[EventType "team-tourn"]
[EventCountry "ESP"]
[SourceTitle "playchess.com"]
[Source "ChessBase"]
[SourceQuality "1"]
[TimeControl "5400+30"]

1. e4 {[%emt 0:00:00]} c5 {[%emt 0:00:00]} 2. Nc3 {[%emt 0:00:00]} e6 {[%emt 0:00:00]} 3. Nf3 {[%emt 0:00:00]} a6 {[%emt 0:00:06]} 4. g3 {[%emt 0:00:00]} b5 {[%emt 0:00:31]} 5. d4 {[%emt 0:00:09]} cxd4 {[%emt 0:00:08]} 6. Nxd4 {[%emt 0:00:04]} Bb7 {[%emt 0:00:16]} 7. Bg2 {[%emt 0:00:05]} b4 {[%emt 0:00:18]} 8. Na4 {[%emt 0:00:45]} Nf6 {[%emt 0:00:55]} 9. O-O {[%emt 0:00:04]} d6 {[%emt 0:07:24]} 10. Re1 {[%emt 0:02:10]} Qc7 {[%emt 0:01:23]} 11. c3 {[%emt 0:14:35]} bxc3 {[%emt 0:05:42]} 12. Nxc3 {[%emt 0:00:06]} Nbd7 {[%emt 0:07:10]} 13. Nd5 {[%emt 0:17:17]} Qd8 {[%emt 0:22:52]} 14. Qa4 {[%emt 0:09:41]} Be7 {[%emt 0:04:41]} 15. Nxe7 {[%emt 0:01:02]} Qxe7 {[%emt 0:00:13]} 16. e5 {[%emt 0:00:45]} Nd5 {[%emt 0:03:02]} 17. exd6 {[%emt 0:01:53]} Qf6 {[%emt 0:12:44]} 18. Nc6 {[%emt 0:14:33]} N7b6 {[%emt 0:03:39]} 19. d7+ {[%emt 0:00:09]} Kxd7 {[%emt 0:09:57]} 20. Ne5+ {[%emt 0:00:10]} Ke7 {[%emt 0:02:22]} 21. Qa3+ {[%emt 0:00:55]} Ke8 {[%emt 0:00:51]} 22. Be3 {[%emt 0:09:33]} Nd7 {[%emt 0:13:16]} 23. Nc4 {[%emt 0:05:52]} Bc6 {[%emt 0:02:46]} 24. Nd6+ {[%emt 0:00:45]} Kf8 {[%emt 0:00:55]} 25. Rac1 {[%emt 0:05:14]} Ne5 {[%emt 0:00:45]} 26. Ne4+ {[%emt 0:00:50]} Qe7 {[%emt 0:00:22]} 27. Bc5 {[%emt 0:00:10]} f5 {[%emt 0:00:10]} 28. Bxe7+ {[%emt 0:00:35]} Nxe7 {[%emt 0:00:02]} 29. Ng5 {[%emt 0:00:26]} Bxg2 {[%emt 0:00:58]} 30. Kxg2 {[%emt 0:00:21]} 1-0